bitfinex/quotes_BTCUSD_20241018
["timestamp","ask_amount","ask_price","bid_price","bid_amount"]
[1729248950351,0.001656,67904.0,67903.0,0.24192608]
[1729248953219,0.001656,67904.0,67903.0,0.17591135]
[1729248953663,0.001656,67904.0,67903.0,0.2859359]
[1729248954322,0.001656,67904.0,67903.0,0.27621603]
[1729248954540,0.001656,67904.0,67903.0,0.28593739]
[1729248957777,0.001656,67904.0,67903.0,0.42672604]
[1729248958011,0.001656,67904.0,67903.0,0.52718084]
[1729248958223,0.001656,67904.0,67903.0,0.66424005]
[1729248958510,0.001656,67904.0,67903.0,0.5321803]
[1729248960213,0.00140558,67904.0,67903.0,0.5321803]
[1729248961314,0.00140558,67904.0,67903.0,0.53217959]
[1729248965289,0.00140558,67904.0,67903.0,0.65446507]
[1729248965521,0.00140558,67904.0,67903.0,0.66418068]
[1729248966898,0.00140558,67904.0,67903.0,0.53217509]
[1729248967121,0.00140558,67904.0,67903.0,1.03417509]
[1729248968884,0.00140558,67904.0,67903.0,1.03117509]
[1729248969105,0.00240558,67904.0,67903.0,1.22691992]
[1729248969560,0.00340558,67904.0,67903.0,1.23691992]
[1729248969778,0.00240558,67904.0,67903.0,1.22891992]
[1729248970012,0.00340558,67904.0,67903.0,1.23491992]
[1729248970280,0.00340558,67904.0,67903.0,1.93691992]
[1729248971193,0.00340558,67904.0,67903.0,1.74217509]
[1729248971433,0.00340558,67904.0,67903.0,1.93691992]
[1729248971674,0.00340558,67904.0,67903.0,1.74217509]
[1729248971898,0.00340558,67904.0,67903.0,1.74017509]
[1729248972337,0.00240558,67904.0,67903.0,1.73417509]
[1729248972830,0.00240558,67904.0,67903.0,1.73017509]
[1729248973289,0.00340558,67904.0,67903.0,1.74216107]
[1729248973953,0.00340558,67904.0,67903.0,2.05155546]
[1729248974187,0.00340558,67904.0,67903.0,1.8568386]
[1729248975102,0.00340558,67904.0,67903.0,1.1568386]
[1729248975594,0.00340558,67904.0,67903.0,1.28875017]
[1729248975832,0.00340558,67904.0,67903.0,1.1568386]
[1729248977197,0.00340558,67904.0,67903.0,1.15683766]
[1729248978579,0.00340558,67904.0,67903.0,1.16272766]
[1729248979684,0.00340558,67904.0,67903.0,0.62705013]
[1729248979898,0.00340558,67904.0,67903.0,0.75895969]
[1729248980141,0.00340558,67904.0,67903.0,0.62705013]
[1729248981471,0.00340558,67904.0,67903.0,0.75895969]
[1729248982115,0.00340558,67904.0,67903.0,0.62705013]
[1729248982334,0.00340558,67904.0,67903.0,0.80075013]
[1729248983878,0.00340558,67904.0,67903.0,0.79104948]
[1729248984150,0.00340558,67904.0,67903.0,0.99547673]
[1729248984575,0.00340558,67904.0,67903.0,0.99747673]
[1729248984998,0.00340558,67904.0,67903.0,0.99547673]
[1729248985224,0.00340558,67904.0,67903.0,0.80075987]
[1729248985438,0.00315538,67904.0,67903.0,0.80075987]
[1729248986077,0.00315538,67904.0,67903.0,0.80275987]
[1729248987830,0.00315538,67904.0,67903.0,0.80075987]
[1729248988290,0.00315538,67904.0,67903.0,0.80275987]
[1729248988964,0.00315538,67904.0,67903.0,0.79304948]
[1729248989183,0.00315538,67904.0,67903.0,0.80276802]
[1729248989414,0.00315538,67904.0,67903.0,0.80076802]
[1729248991343,0.00315538,67904.0,67903.0,0.80276802]
[1729248992198,0.00315538,67904.0,67903.0,0.84862299]
[1729248992890,0.00315538,67904.0,67903.0,0.84862473]
[1729248993122,0.00315538,67904.0,67903.0,0.84862688]
[1729248994245,0.00315538,67904.0,67903.0,0.84662688]
[1729248994467,0.00315538,67904.0,67903.0,0.67293342]
[1729248994682,0.00315538,67904.0,67903.0,0.62707017]
[1729248995826,0.00315538,67904.0,67903.0,0.67293412]
[1729248996492,0.00315538,67904.0,67903.0,0.78761165]
[1729248996949,0.00315538,67904.0,67903.0,0.7417477]
[1729248997185,0.00315538,67904.0,67903.0,0.74175188]
[1729248998879,0.00315538,67904.0,67903.0,0.93642642]
[1729248999105,0.00315538,67904.0,67903.0,0.98230076]
[1729248999331,0.00315538,67904.0,67903.0,0.78762622]
[1729248999554,0.00315538,67904.0,67903.0,0.98252688]
[1729248999999,0.00315538,67904.0,67903.0,0.93665254]
[1729249000226,0.00315538,67904.0,67903.0,0.98252288]
[1729249000457,0.00315538,67904.0,67903.0,0.78762222]
[1729249005192,0.00315538,67904.0,67903.0,0.78762446]
[1729249008594,0.00315538,67904.0,67903.0,0.79686207]
[1729249009051,0.00315538,67904.0,67903.0,0.79886207]
[1729249009972,0.00315538,67904.0,67903.0,0.79686207]
[1729249010408,0.00315538,67904.0,67903.0,0.79886207]
[1729249010923,0.00315538,67904.0,67903.0,0.79686207]
[1729249011153,0.00315538,67904.0,67903.0,0.79886207]
[1729249013868,0.00315538,67904.0,67903.0,0.79686207]
[1729249014523,0.00215538,67904.0,67903.0,0.79086207]
[1729249015095,0.00215538,67904.0,67903.0,0.80486207]
[1729249015302,0.00115538,67904.0,67903.0,0.79286207]
[1729249015714,0.00115538,67904.0,67903.0,0.80486207]
[1729249015715,0.00215538,67904.0,67903.0,0.80486207]
[1729249015911,0.00215538,67904.0,67903.0,0.80686207]
[1729249016551,0.00215538,67904.0,67903.0,0.80686463]
[1729249021935,0.00215538,67904.0,67903.0,0.6901871]
[1729249022140,0.17665538,67904.0,67903.0,0.6901871]
[1729249022593,0.17665538,67904.0,67903.0,0.64431676]
[1729249023739,0.17665538,67904.0,67903.0,0.38431676]
[1729249023956,0.17665538,67904.0,67903.0,0.36131676]
[1729249025488,0.17665538,67904.0,67903.0,0.38431676]
[1729249025696,0.17665538,67904.0,67903.0,0.57939143]
[1729249026345,0.17665538,67904.0,67903.0,0.38431676]
[1729249026554,0.17665538,67904.0,67903.0,0.36131676]
[1729249027186,0.17665538,67904.0,67903.0,0.35158679]
[1729249027396,0.17665538,67904.0,67903.0,0.36131302]
[1729249029633,0.17665538,67904.0,67903.0,0.49338801]
[1729249030299,0.17665538,67904.0,67903.0,0.36131302]
[1729249030706,0.17665538,67904.0,67903.0,0.49338592]
[1729249032021,0.17665538,67904.0,67903.0,0.49338592]
[1729249032231,0.17665538,67904.0,67903.0,0.48838592]
[1729249032458,0.17665538,67904.0,67903.0,0.49338592]
[1729249033113,0.17665538,67904.0,67903.0,0.51638592]
[1729249033331,0.17665538,67904.0,67903.0,0.38431302]
[1729249033332,0.00215538,67904.0,67903.0,0.38431302]
[1729249034030,0.00215538,67904.0,67903.0,0.38931302]
[1729249034252,0.00215538,67904.0,67903.0,0.39431302]
[1729249035638,0.00215538,67904.0,67903.0,0.50898107]
[1729249036065,0.00215538,67904.0,67903.0,0.49898107]
[1729249036285,0.00215538,67904.0,67903.0,0.63100924]
[1729249036507,0.00215538,67904.0,67903.0,0.50398107]
[1729249036940,0.00215538,67904.0,67903.0,0.49898107]
[1729249037147,0.00215538,67904.0,67903.0,0.63100524]
[1729249037369,0.00215538,67904.0,67903.0,0.63600524]
[1729249037576,0.00215538,67904.0,67903.0,0.50898107]
[1729249037795,0.00215538,67904.0,67903.0,0.63600448]
[1729249038006,0.00215538,67904.0,67903.0,0.50398107]
[1729249038214,0.00215538,67904.0,67903.0,0.49898107]
[1729249038421,0.09485538,67904.0,67903.0,0.6310051]
[1729249039254,0.09485538,67904.0,67903.0,0.52132757]
[1729249039471,0.17005538,67904.0,67903.0,0.52132757]
[1729249039690,0.17005538,67904.0,67903.0,0.36630354]
[1729249040986,0.17005538,67904.0,67903.0,0.49832757]
[1729249041193,0.17005538,67904.0,67903.0,0.36630354]
[1729249042105,0.17005538,67904.0,67903.0,0.36130354]
[1729249042738,0.17005538,67904.0,67903.0,0.47598107]
[1729249047388,0.09485538,67904.0,67903.0,0.47598107]
[1729249047594,0.09485538,67904.0,67903.0,0.60801578]
[1729249047808,0.09485538,67904.0,67903.0,0.60801909]
[1729249048276,0.09485538,67904.0,67903.0,0.47598438]
[1729249051677,0.09485538,67904.0,67903.0,0.59830992]
[1729249051911,0.09485538,67904.0,67903.0,0.60803497]
[1729249053029,0.32462138,67904.0,67903.0,0.20904384]
[1729249053239,0.32462138,67904.0,67903.0,0.21871716]
[1729249053900,0.32462138,67904.0,67903.0,0.32878015]
[1729249054121,0.32362138,67904.0,67903.0,0.29477681]
[1729249054349,0.32362138,67904.0,67903.0,0.28077681]
[1729249054639,0.32362138,67904.0,67903.0,0.29077681]
[1729249055095,0.32362138,67904.0,67903.0,0.30177681]
[1729249055745,0.32362138,67904.0,67903.0,0.30176232]
[1729249056205,0.32362138,67904.0,67903.0,0.21371716]
[1729249056432,0.32362138,67904.0,67903.0,0.30175883]
[1729249056849,0.32362138,67904.0,67903.0,0.30175272]
[1729249057068,0.32362138,67904.0,67903.0,0.21371716]
[1729249057311,0.32362138,67904.0,67903.0,0.30175667]
[1729249057512,0.32362138,67904.0,67903.0,0.21371716]
[1729249057727,0.32362138,67904.0,67903.0,0.30175125]
[1729249057918,0.32362138,67904.0,67903.0,0.21371716]
[1729249058812,0.32362138,67904.0,67903.0,0.19815384]
[1729249059522,0.32362138,67904.0,67903.0,0.19814831]
[1729249060551,0.32337092,67904.0,67903.0,0.19814831]
[1729249061990,0.32337092,67904.0,67903.0,0.26417263]
[1729249062810,0.32337092,67904.0,67903.0,0.19814831]
[1729249063029,0.32337092,67904.0,67903.0,0.24216187]
[1729249063247,0.32337092,67904.0,67903.0,0.19814831]
[1729249063465,0.32337092,67904.0,67903.0,0.18842879]
[1729249063692,0.24087092,67904.0,67903.0,0.41640198]
[1729249063898,0.24087092,67904.0,67903.0,0.32836789]
[1729249064139,0.24087092,67904.0,67903.0,0.32374682]
[1729249065227,0.09360492,67904.0,67903.0,0.32374682]
[1729249065442,0.24087092,67904.0,67903.0,0.32372957]
[1729249067284,0.24087092,67904.0,67903.0,0.298468]
[1729249067480,0.24087092,67904.0,67903.0,0.3237311]
[1729249067897,0.24087092,67904.0,67903.0,0.21369189]
[1729249069418,0.09360492,67904.0,67903.0,0.21369189]
[1729249070133,0.24087092,67904.0,67903.0,0.21369189]
[1729249071269,0.09360492,67904.0,67903.0,0.21369189]
[1729249071488,0.24087092,67904.0,67903.0,0.21369189]
[1729249075143,0.24087092,67904.0,67903.0,0.2136967]
[1729249076335,0.24087092,67904.0,67903.0,0.32373671]
[1729249076775,0.24087092,67904.0,67903.0,0.2136967]
[1729249077462,0.24087092,67904.0,67903.0,0.28618875]
[1729249077943,0.24087092,67904.0,67903.0,0.26418445]
[1729249078168,0.32257092,67904.0,67903.0,0.26418445]
[1729249078395,0.32257092,67904.0,67903.0,0.24217407]
[1729249080149,0.32257092,67904.0,67903.0,0.19814703]
[1729249080829,0.32257092,67904.0,67903.0,0.26417785]
[1729249081568,0.32257092,67904.0,67903.0,0.19814703]
[1729249081802,0.32257092,67904.0,67903.0,0.18842879]
[1729249082026,0.32257092,67904.0,67903.0,0.19815211]
[1729249083607,0.09360492,67904.0,67903.0,0.27974318]
[1729249083844,0.00090492,67904.0,67903.0,0.47101113]
[1729249084319,0.00090492,67904.0,67903.0,0.21371236]
[1729249084544,0.00090492,67904.0,67903.0,0.32374313]
[1729249084767,0.00090492,67904.0,67903.0,0.30174442]
[1729249085666,0.00090492,67904.0,67903.0,0.30174559]
[1729249085900,0.00090492,67904.0,67903.0,0.27646085]
[1729249086090,0.00090492,67904.0,67903.0,0.30174559]
[1729249087318,0.14817092,67904.0,67903.0,0.30174559]
[1729249089580,0.14817092,67904.0,67903.0,0.27646085]
[1729249089786,0.14817092,67904.0,67903.0,0.30174603]
[1729249090220,0.14817092,67904.0,67903.0,0.21371397]
[1729249090667,0.14817092,67904.0,67903.0,0.30179424]
[1729249091089,0.14817092,67904.0,67903.0,0.21371397]
[1729249091521,0.14817092,67904.0,67903.0,0.19815367]
[1729249092162,0.14817092,67904.0,67903.0,0.28623394]
[1729249096569,0.14817092,67904.0,67903.0,0.19815367]
[1729249097457,0.14817092,67904.0,67903.0,0.29845956]
[1729249097665,0.14817092,67904.0,67903.0,0.30818519]
[1729249098119,0.14817092,67904.0,67903.0,0.19815442]
[1729249098328,0.14817092,67904.0,67903.0,0.30830989]
[1729249098536,0.14817092,67904.0,67903.0,0.31835971]
[1729249101564,0.14817092,67904.0,67903.0,0.31836061]
[1729249104389,0.14817092,67904.0,67903.0,0.31836183]
[1729249105795,0.14817092,67904.0,67903.0,0.31836262]
[1729249108665,0.14817092,67904.0,67903.0,0.31837611]
[1729249113520,0.14817092,67904.0,67903.0,0.20818685]
[1729249113981,0.14817092,67904.0,67903.0,0.20818892]
[1729249121581,0.14817092,67904.0,67903.0,0.2081911]
[1729249122011,0.14817092,67904.0,67903.0,0.22376405]
[1729249123329,0.00090492,67904.0,67903.0,0.22376405]
[1729249123828,0.14817092,67904.0,67903.0,0.22376405]
[1729249124259,0.00090492,67904.0,67903.0,0.22376405]
[1729249124477,0.14817092,67904.0,67903.0,0.22376405]
[1729249124693,0.00090492,67904.0,67903.0,0.22376405]
[1729249125616,0.00090492,67904.0,67903.0,0.2237618]
[1729249127615,0.32227092,67904.0,67903.0,0.22328964]
[1729249127847,0.32227092,67904.0,67903.0,0.2237618]
[1729249128522,0.32227092,67904.0,67903.0,0.3340504]
[1729249133678,0.32227092,67904.0,67903.0,0.33405125]
[1729249136989,0.32227092,67904.0,67903.0,0.32431451]
[1729249137215,0.32227092,67904.0,67903.0,0.33404342]
[1729249138802,0.32227092,67904.0,67903.0,0.31847535]
[1729249139020,0.32227092,67904.0,67903.0,0.29747535]
[1729249139278,0.32227092,67904.0,67903.0,0.30347535]
[1729249139504,0.32327092,67904.0,67903.0,0.31347535]
[1729249139716,0.32327092,67904.0,67903.0,0.30747535]
[1729249139936,0.32227092,67904.0,67903.0,0.30047535]
[1729249140160,0.32227092,67904.0,67903.0,0.30247535]
[1729249140840,0.32227092,67904.0,67903.0,0.30247496]
[1729249142886,0.32227092,67904.0,67903.0,0.19218683]
[1729249147351,0.32227092,67904.0,67903.0,0.28041321]
[1729249148493,0.32227092,67904.0,67903.0,0.27841321]
[1729249148711,0.32227092,67904.0,67903.0,0.19218683]
[1729249148932,0.32227092,67904.0,67903.0,0.18918683]
[1729249149157,0.32227092,67904.0,67903.0,0.18718683]
[1729249149374,0.32227092,67904.0,67903.0,0.18918683]
[1729249149597,0.32227092,67904.0,67903.0,0.18818683]
[1729249150017,0.32227092,67904.0,67903.0,0.19018683]
[1729249151329,0.24367092,67904.0,67903.0,0.19018683]
[1729249151541,0.14817092,67904.0,67903.0,0.19018683]
[1729249152206,0.14817092,67904.0,67903.0,0.18918683]
[1729249152418,0.14817092,67904.0,67903.0,0.18718683]
[1729249152634,0.14817092,67904.0,67903.0,0.18818683]
[1729249152857,0.14817092,67904.0,67903.0,0.19018683]
[1729249155568,0.14817092,67904.0,67903.0,0.18045831]
[1729249155772,0.14817092,67904.0,67903.0,0.19018745]
[1729249157583,0.14817092,67904.0,67903.0,0.20575947]
[1729249159156,0.14817092,67904.0,67903.0,0.20576278]
[1729249159884,0.14817092,67904.0,67903.0,0.20576284]
[1729249162108,0.14817092,67904.0,67903.0,0.31600423]
[1729249162325,0.14817092,67904.0,67903.0,0.20576284]
[1729249165727,0.14817092,67904.0,67903.0,0.19576284]
[1729249166611,0.00090492,67904.0,67903.0,0.31044037]
[1729249167084,0.00090492,67904.0,67903.0,0.44273003]
[1729249167797,0.00090492,67904.0,67903.0,0.44173003]
[1729249168019,0.00090492,67904.0,67903.0,0.54613003]
[1729249168472,0.00090492,67904.0,67903.0,0.54113003]
[1729249168914,0.00190492,67904.0,67903.0,0.55113003]
[1729249169143,0.00190492,67904.0,67903.0,0.54913003]
[1729249169369,0.00190492,67904.0,67903.0,0.56113003]
[1729249169589,0.00190492,67904.0,67903.0,0.42884037]
[1729249169819,0.00190492,67904.0,67903.0,0.41684037]
[1729249170043,0.00190492,67904.0,67903.0,0.31416284]
[1729249170296,0.00190492,67904.0,67903.0,0.21476284]
[1729249171186,0.00190492,67904.0,67903.0,0.18945831]
[1729249171406,0.00190492,67904.0,67903.0,0.21473935]
[1729249176070,0.00190492,67904.0,67903.0,0.21556735]
[1729249179402,0.00190492,67904.0,67903.0,0.21555711]
[1729249183380,0.00190492,67904.0,67903.0,0.21555751]
[1729249187931,0.00190492,67904.0,67903.0,0.36282551]
[1729249188155,0.00190492,67904.0,67903.0,0.21555751]
[1729249188616,0.00190492,67904.0,67903.0,0.36282551]
[1729249188843,0.00190492,67904.0,67903.0,0.22459517]
[1729249190016,0.00190492,67904.0,67903.0,0.33471782]
[1729249190240,0.14917092,67904.0,67903.0,0.34061039]
[1729249191382,0.36992797,67904.0,67903.0,0.19932397]
[1729249191586,0.36992797,67904.0,67903.0,0.3127105]
[1729249191587,0.32407092,67904.0,67903.0,0.3127105]
[1729249191809,0.32407092,67904.0,67903.0,0.22460756]
[1729249193180,0.32407092,67904.0,67903.0,0.09291715]
[1729249193408,0.32407092,67904.0,67903.0,0.05385676]
[1729249193639,0.32307092,67904.0,67903.0,0.03413249]
[1729249193861,0.32407092,67904.0,67903.0,0.04213249]
[1729249194308,0.32307092,67904.0,67903.0,0.02913249]
[1729249194762,0.32307092,67904.0,67903.0,0.03113249]
[1729249195646,0.32307092,67904.0,67903.0,0.03513249]
[1729249198373,0.32307092,67904.0,67903.0,0.03560465]
[1729249200423,0.43709845,67904.0,67903.0,0.03513249]
[1729249200652,0.32242092,67904.0,67903.0,0.03513249]
[1729249200881,0.43709845,67904.0,67903.0,0.03513249]
[1729249201111,0.68524143,67904.0,67903.0,0.03513249]
[1729249201330,0.68976927,67904.0,67903.0,0.03313249]
[1729249201561,0.55630382,67904.0,67903.0,0.03313249]
[1729249202242,0.55630382,67904.0,67903.0,0.02913249]
[1729249202492,0.55177598,67904.0,67903.0,0.03113249]
[1729249202707,0.55177598,67904.0,67903.0,0.02913249]
[1729249202935,0.55630382,67904.0,67903.0,0.02913249]
[1729249203160,0.32242092,67904.0,67903.0,0.02913249]
[1729249203381,0.43709845,67904.0,67903.0,0.02913249]
[1729249204078,0.43909845,67904.0,67903.0,0.02913249]
[1729249204805,0.4481097,67904.0,67903.0,0.02913249]
[1729249205298,0.33343217,67904.0,67903.0,0.02913249]
[1729249205544,0.4481097,67904.0,67903.0,0.02913249]
[1729249206191,0.29183245,67904.0,67903.0,0.02913249]
[1729249217860,0.29183245,67904.0,67903.0,0.000828]
[1729249218951,0.41150998,67904.0,67903.0,0.000828]
[1729249219418,0.41350998,67904.0,67903.0,0.000828]
[1729249220095,0.41150998,67904.0,67903.0,0.000828]
[1729249220805,0.40950998,67904.0,67903.0,0.000828]
[1729249221250,0.41750998,67904.0,67903.0,0.001828]
[1729249222826,0.41750998,67904.0,67903.0,0.002828]
[1729249223516,0.46134727,67904.0,67903.0,0.002828]
[1729249225111,0.46334727,67904.0,67903.0,0.002828]
[1729249225782,0.46134727,67904.0,67903.0,0.002828]
[1729249227110,0.41750998,67904.0,67903.0,0.002828]
[1729249227360,0.18815492,67904.0,67903.0,0.002828]
[1729249227587,0.30283245,67904.0,67903.0,0.002828]
[1729249233438,0.41750998,67904.0,67903.0,0.002828]
[1729249236445,0.18815492,67904.0,67903.0,0.002828]
[1729249236661,0.30283245,67904.0,67903.0,0.002828]
[1729249240390,0.18815492,67904.0,67903.0,0.002828]
[1729249240637,0.30283245,67904.0,67903.0,0.002828]
[1729249244394,0.3349817,67904.0,67903.0,0.002828]
[1729249245111,0.30283245,67904.0,67903.0,0.002828]
[1729249247206,0.30283245,67904.0,67903.0,0.002828]
[1729249250979,0.00825492,67904.0,67903.0,0.002828]
[1729249251413,0.00825492,67904.0,67903.0,0.01207624]
[1729249251635,0.00825492,67904.0,67903.0,0.002828]
[1729249251853,0.00825492,67904.0,67903.0,0.00814735]
[1729249252084,0.00825492,67904.0,67903.0,0.002828]
[1729249252328,0.00825492,67904.0,67903.0,0.00814735]
[1729249270989,0.00825492,67904.0,67903.0,0.10394735]
[1729249274130,0.00825492,67904.0,67903.0,0.11366468]
[1729249276164,0.00825492,67904.0,67903.0,0.33772383]
[1729249276810,0.00825492,67904.0,67903.0,0.38177673]
[1729249277042,0.00825492,67904.0,67903.0,0.38175153]
[1729249277524,0.00825492,67904.0,67903.0,0.44179888]
[1729249277997,0.00825492,67904.0,67903.0,0.35374348]
[1729249278739,0.00025492,67904.0,67903.0,0.46273291]
[1729249278942,0.00025492,67904.0,67903.0,0.35274348]
[1729249279156,0.00125492,67904.0,67903.0,0.35274348]
[1729249279604,0.00025492,67904.0,67903.0,0.35274348]
[1729249279849,0.00025492,67904.0,67903.0,0.35174348]
[1729249280065,0.00125492,67904.0,67903.0,0.35174348]
[1729249280289,0.00125492,67904.0,67903.0,0.075407]
[1729249280533,0.00125492,67904.0,67903.0,0.01586468]
[1729249281226,0.00125492,67904.0,67903.0,0.00614735]
[1729249281473,0.11593245,67904.0,67903.0,0.00531935]
[1729249281683,0.11593245,67904.0,67896.0,0.22075705]
[1729249281914,0.11593245,67904.0,67897.0,0.00971315]
[1729249281915,0.11467753,67898.0,67897.0,0.00971315]
[1729249282156,0.11467753,67898.0,67897.0,0.01417401]
[1729249283299,0.11467753,67898.0,67897.0,0.02017401]
[1729249284924,0.11467753,67898.0,67897.0,0.01046086]
[1729249285156,0.11467753,67898.0,67897.0,0.02017614]
[1729249285376,0.11467753,67898.0,67897.0,0.02517639]
[1729249286547,0.11467753,67898.0,67897.0,0.01546086]
[1729249286793,0.11467753,67900.0,67897.0,0.01546086]
[1729249287040,0.11467753,67900.0,67897.0,0.011]
[1729249288147,0.11467753,67900.0,67897.0,0.005]
[1729249288641,0.11467753,67900.0,67898.0,0.00445618]
[1729249289082,0.11467753,67900.0,67897.0,0.005]
[1729249289551,0.11467753,67900.0,67893.0,0.001656]
[1729249289792,0.11767753,67900.0,67898.0,0.00371349]
[1729249290033,0.11767753,67900.0,67889.0,0.22241305]
[1729249290279,0.11767753,67900.0,67890.0,0.02525929]
[1729249290488,0.11467753,67900.0,67891.0,0.00971492]
[1729249290716,0.11467753,67900.0,67898.0,0.000828]
[1729249292615,0.11867753,67900.0,67898.0,0.000828]
[1729249293773,0.004,67900.0,67898.0,0.000828]
[1729249295153,0.004,67900.0,67899.0,0.00370881]
[1729249296330,0.004,67900.0,67899.0,0.27706007]
[1729249296575,0.00025492,67904.0,67899.0,0.27706007]
[1729249296833,0.00025492,67904.0,67900.0,0.15867373]
[1729249297054,0.00025492,67904.0,67901.0,0.00971458]
[1729249297295,0.00025492,67904.0,67902.0,0.00971458]
[1729249297514,0.00025492,67904.0,67901.0,0.00369945]
[1729249297760,0.00025492,67904.0,67903.0,0.00369009]
[1729249298423,0.00025492,67904.0,67900.0,0.14895915]
[1729249298646,0.00025492,67904.0,67903.0,0.00369009]
[1729249298885,0.00025492,67904.0,67901.0,0.001]
[1729249299112,0.00025492,67904.0,67903.0,0.00369009]
[1729249299328,0.00025492,67904.0,67902.0,0.00369477]
[1729249299780,0.00025492,67904.0,67903.0,0.00369009]
[1729249300462,0.00025492,67904.0,67900.0,0.19501587]
[1729249300680,0.11493245,67904.0,67903.0,0.00369009]
[1729249300898,0.00025492,67904.0,67901.0,0.002]
[1729249301113,0.00025492,67904.0,67903.0,0.00369009]
[1729249301349,0.00025492,67904.0,67902.0,0.00369477]
[1729249301789,0.00025492,67904.0,67903.0,0.00369009]
[1729249302005,0.00025492,67904.0,67900.0,0.19301671]
[1729249302227,0.11493245,67904.0,67903.0,0.00369009]
[1729249302448,0.11493245,67904.0,67900.0,0.19301671]
[1729249302662,0.11493245,67904.0,67903.0,0.00369009]
[1729249302884,0.11493245,67904.0,67900.0,0.19301671]
[1729249303077,0.11493245,67904.0,67903.0,0.00369009]
[1729249303299,0.11593245,67904.0,67901.0,0.002]
[1729249303543,0.11593245,67904.0,67903.0,0.00369009]
[1729249303760,0.11593245,67904.0,67902.0,0.00971364]
[1729249303761,0.11593245,67904.0,67902.0,0.00369477]
[1729249304228,0.11593245,67904.0,67903.0,0.00369009]
[1729249304640,0.11593245,67904.0,67900.0,0.14895915]
[1729249304901,0.11593245,67904.0,67903.0,0.00369009]
[1729249305153,0.11493245,67904.0,67901.0,0.002]
[1729249305403,0.11493245,67904.0,67903.0,0.00369009]
[1729249305624,0.11493245,67904.0,67901.0,0.002]
[1729249305868,0.11493245,67904.0,67903.0,0.00369009]
[1729249306109,0.11493245,67904.0,67902.0,0.00369477]
[1729249306331,0.11493245,67904.0,67898.0,0.000828]
[1729249306332,0.11593245,67904.0,67903.0,0.00369009]
[1729249306570,0.11593245,67904.0,67898.0,0.000828]
[1729249306798,0.11467753,67899.0,67898.0,0.000828]
[1729249309428,0.11467753,67899.0,67898.0,0.009828]
[1729249309858,0.11467753,67899.0,67898.0,0.01354149]
[1729249310072,0.11467753,67899.0,67898.0,0.02326321]
[1729249310305,0.11467753,67899.0,67898.0,0.01354149]
[1729249310939,0.00025492,67904.0,67898.0,0.33890064]
[1729249311163,0.00025492,67904.0,67903.0,0.11467753]
[1729249311381,0.00025492,67904.0,67903.0,0.35063947]
[1729249311736,0.00025492,67904.0,67903.0,0.35470618]
[1729249311834,0.00025492,67904.0,67903.0,0.35863507]
[1729249312725,0.00125492,67904.0,67903.0,0.35863507]
[1729249313168,0.00025492,67904.0,67903.0,0.36263507]
[1729249313401,0.00025492,67904.0,67903.0,0.35863507]
[1729249313637,0.00025492,67904.0,67903.0,0.36163507]
[1729249313866,0.00025492,67904.0,67903.0,0.37463507]
[1729249314787,0.00025492,67904.0,67903.0,0.37163507]
[1729249315244,0.00025492,67904.0,67903.0,0.38263507]
[1729249317515,0.00025492,67904.0,67903.0,0.49260203]
[1729249318409,0.00025492,67904.0,67903.0,0.49849303]
[1729249319731,0.00025492,67904.0,67903.0,0.38852607]
[1729249322613,0.00025492,67904.0,67903.0,0.47649553]
[1729249324406,0.00025492,67904.0,67903.0,0.47651412]
[1729249325558,0.00025492,67904.0,67903.0,0.36707776]
[1729249325789,0.00025492,67904.0,67903.0,0.38263507]
[1729249327673,0.00025492,67904.0,67903.0,0.44863608]
[1729249328108,0.00025492,67904.0,67903.0,0.38263507]
[1729249329644,0.00025492,67904.0,67903.0,0.44863396]
[1729249334176,0.00025492,67904.0,67903.0,0.44865504]
[1729249336643,0.00025492,67904.0,67903.0,0.38263507]
[1729249337504,0.00025492,67904.0,67903.0,0.35735475]
[1729249337780,0.00025492,67904.0,67903.0,0.38259822]
[1729249339581,0.00025492,67904.0,67903.0,0.47066088]
[1729249340044,0.00025492,67904.0,67903.0,0.44865488]
[1729249340739,0.00025492,67904.0,67903.0,0.38259822]
[1729249341634,0.00025492,67904.0,67903.0,0.44866794]
[1729249341856,0.00025492,67904.0,67903.0,0.38259822]
[1729249342720,0.00025492,67904.0,67903.0,0.44866908]
[1729249342954,0.00025492,67904.0,67903.0,0.38259822]
[1729249343186,0.14752092,67904.0,67903.0,0.35527482]
[1729249343409,0.14752092,67904.0,67903.0,0.25025124]
[1729249343637,0.14752092,67904.0,67903.0,0.20619822]
[1729249346052,0.14752092,67904.0,67903.0,0.18095475]
[1729249347123,0.14752092,67904.0,67903.0,0.19067991]
[1729249348219,0.14752092,67904.0,67903.0,0.20624066]
[1729249348627,0.14752092,67904.0,67903.0,0.1965155]
[1729249349727,0.22312092,67904.0,67903.0,0.0319956]
[1729249349936,0.31332092,67904.0,67903.0,0.0319956]
[1729249350383,0.31332092,67904.0,67903.0,0.024]
[1729249350633,0.147277,67899.0,67898.0,0.00303756]
[1729249351319,0.147277,67899.0,67898.0,0.01107825]
[1729249351549,0.147277,67899.0,67898.0,0.00303756]
[1729249353593,0.147277,67899.0,67898.0,0.02476334]
[1729249354302,0.147277,67899.0,67898.0,0.01503756]
[1729249359638,0.147277,67899.0,67898.0,0.15699671]
[1729249359847,0.147277,67899.0,67898.0,0.1720374]
[1729249360321,0.147277,67899.0,67898.0,0.1670374]
[1729249360540,0.147277,67899.0,67898.0,0.1650374]
[1729249360769,0.147277,67899.0,67898.0,0.1720374]
[1729249361229,0.147277,67899.0,67898.0,0.1670374]
[1729249361472,0.147277,67899.0,67898.0,0.16399671]
[1729249367582,0.147277,67899.0,67898.0,0.17370315]
[1729249367794,0.147277,67899.0,67898.0,0.16399671]
[1729249368021,0.147277,67899.0,67898.0,0.1720374]
[1729249368528,0.147277,67899.0,67898.0,0.18174551]
[1729249375441,0.147277,67899.0,67898.0,0.19731411]
[1729249375669,0.147277,67899.0,67898.0,0.19733607]
[1729249379420,0.147277,67899.0,67898.0,0.1720374]
[1729249379647,0.147277,67899.0,67898.0,0.19733587]
[1729249380819,0.147277,67899.0,67898.0,0.03280824]
[1729249380820,0.245977,67899.0,67898.0,0.03280824]
[1729249381054,0.328377,67899.0,67898.0,0.03059868]
[1729249381267,0.328377,67899.0,67898.0,0.012828]
[1729249381925,0.328377,67899.0,67898.0,0.007828]
[1729249382379,0.333377,67899.0,67898.0,0.012828]
[1729249382608,0.45052383,67899.0,67898.0,0.012828]
[1729249382835,0.328377,67899.0,67898.0,0.007828]
[1729249383066,0.328377,67899.0,67898.0,0.008828]
[1729249383067,0.333377,67899.0,67898.0,0.008828]
[1729249383287,0.333377,67899.0,67898.0,0.001828]
[1729249383785,0.328377,67899.0,67898.0,0.000828]
[1729249384037,0.330033,67899.0,67898.0,0.000828]
[1729249384912,0.335033,67899.0,67898.0,0.000828]
[1729249385101,0.340033,67899.0,67898.0,0.001828]
[1729249385533,0.335033,67899.0,67898.0,0.000828]
[1729249385961,0.340033,67899.0,67898.0,0.001828]
[1729249386181,0.46693256,67899.0,67898.0,0.001828]
[1729249386421,0.345033,67899.0,67898.0,0.000828]